Cogmind - Beta 13 @@@ ROGUE MODE // 2024.04.05 @ 20:23:51 Player: Rougue Result: Destroyed by D-53 Grenadier with Mini Grenade Launcher Performance ------------- Evolutions (0) 0 Regions Visited (2) 400 Robots Destroyed (21) 105 Value Destroyed (588) 588 Prototype IDs (2) 40 Alien Tech Used (0) 0 Bonus (-44) -44 TOTAL SCORE: 1089 Bonus ------- Friendly Fire -44 Cogmind --------- Core Integrity 0/250 Matter 130/300 Energy 100/100 System Corruption 0% Temperature Cool (0) Movement Core (350) Ox6 Location -10/Mines Parts ------- > --- POWER (1) -------- (None) > --- PROPULSION (2) --- (None) > --- UTILITY (2) ------ Large Storage Unit > --- WEAPON (2) ------- (None) > --- INVENTORY (15) --- Ion Engine Ion Engine Light Treads Transport Network Coupler Hacking Suite Hacking Suite Hacking Suite Assault Rifle Light Assault Rifle Light Cannon Datajack Datajack Heavy Mace Peak State ------------ > --- POWER ------------ Light Nuclear Core > --- PROPULSION ------- Light Treads Light Treads > --- UTILITY ---------- Large Storage Unit Structural Scanner > --- WEAPON ----------- Assault Rifle Rocket Launcher > --- INVENTORY -------- Ion Engine Ion Engine Light Treads Light Treads Light Treads Transport Network Coupler Hacking Suite Hacking Suite Hacking Suite Light Assault Rifle Light Cannon Grenade Launcher Datajack Datajack Heavy Mace [Rating: 12] Favorites ----------- Power Ion Engine Engine Ion Engine Power Core Light Nuclear Core Propulsion Light Treads Treads Light Treads Utility Large Storage Unit Device Structural Scanner Storage Large Storage Unit Weapon Assault Rifle Ballistic Gun Assault Rifle Ballistic Cannon Light Cannon Launcher Grenade Launcher Build | -11 -10 -10 ------- Run | Yrd Mat Min Slots Evolved . | . . . Power . | . . . Propulsion . | . . . Utility . | . . . Weapon . | . . . Parts Attached 22 | 6 5 11 Power 2 | 1 . 1 Engine 1 | 1 . . Core 1 | . . 1 Reactor . | . . . Propulsion 8 | 2 2 4 Treads 8 | 2 2 4 Leg . | . . . Wheel . | . . . Hover . | . . . Flight . | . . . Utility 3 | 1 2 . Device 1 | . 1 . Storage 2 | 1 1 . Processor . | . . . Hackware . | . . . Protection . | . . . Artifact . | . . . Weapon 9 | 2 1 6 Energy Gun . | . . . Energy Cannon . | . . . Ballistic Gun 4 | 2 1 1 Ballistic Cannon 1 | . . 1 Launcher 4 | . . 4 Special Weapon . | . . . Impact Weapon . | . . . Slashing Weapon . | . . . Piercing Weapon . | . . . Special Melee Weapon . | . . . Unidentified Prototypes . | . . . Parts Lost 8 | . . 8 Power 1 | . . 1 Propulsion 4 | . . 4 Utility 1 | . . 1 Weapon 2 | . . 2 Highest Loss Streak 8 | . . 8 To Critical Strikes . | . . . Average Slot Usage (%) 97 | . 95 99 Engine 8 | . 14 1 Core 5 | . . 12 Treads 28 | . 28 28 Device 11 | . 10 14 Storage 14 | . 14 14 Ballistic Gun 20 | . 28 12 Ballistic Cannon 4 | . . 9 Launcher 2 | . . 5 Naked Turns . | . . . Heaviest Build 33 | 14 30 33 Greatest Support 40 | 40 40 40 Greatest Overweight (x) 6 | 1 . 6 Average Overweight (x) . | . . . Largest Inventory Capacity 15 | 8 15 15 Average Capacity 13 | 7 13 15 Most Carried 15 | 4 15 15 Average Carried 12 | 2 11 14 Final Capacity 15 | 8 15 15 Final Carried 15 | 4 15 13 Class Distribution -------------------- 100% | Mutant Dominant Class ---------------- Mutant | -10/Materials Mutant | -10/Mines Resources | -11 -10 -10 ----------- Run | Yrd Mat Min Matter Collected 728 | 289 265 174 Remotely . | . . . Salvage Created 769 | 91 490 188 Parts 45 | 1 33 11 Haulers Intercepted 2 | . 2 . Recyclers Shooed . | . . . Parts Field Recycled . | . . . Retrieved Matter . | . . . Parts Self-Destructed . | . . . Prevented . | . . . Kills | -11 -10 -10 ------- Run | Yrd Mat Min Combat Hostiles Destroyed 29 | . 9 20 Guns 11 | . 9 2 Cannons 3 | . . 3 AOE 15 | . . 15 Classes Destroyed 7 | 1 3 3 Hauler 2 | . 2 . Recycler 1 | 1 . . Operator 2 | . 2 . Swarmer 3 | . . 3 Grunt 11 | . 9 2 Sentry 2 | . . 2 Assembled 13 | . . 13 Best Kill Streak 13 | 1 3 13 Combat Bots Only 13 | . 3 13 Max Kills in Single Turn 12 | 1 1 12 Gunslinging . | . . . Exploded 12 | . . 12 Melee . | . . . Uniques/NPCs Destroyed . | . . . Combat | -11 -10 -10 -------- Run | Yrd Mat Min Hostile Shots Fired 91 | . 37 54 Missed 21 | . 10 11 Damage Taken 1349 | . 335 1014 Core 265 | . 10 255 Absorbed by Shields . | . . . Core Remaining (%) 100 | 100 . . Volleys Fired 68 | 6 40 22 Largest 2 | 2 2 2 Hottest 63 | 40 40 63 Shots Fired 131 | 12 78 41 Gun 101 | 12 78 11 Cannon 11 | . . 11 Launcher 19 | . . 19 Special . | . . . Kinetic 112 | 12 78 22 Thermal . | . . . Explosive 19 | . . 19 Electromagnetic . | . . . Robot Hit Streak 12 | 10 12 8 Robot Miss Streak 4 | 1 3 4 Penetration Max . | . . . Secondary Targets . | . . . Shots Hit Robots 90 | 10 59 21 Core Hits 85 | 2 31 52 Critical Kills . | . . . Critical Parts Destroyed . | . . . Critical Strikes . | . . . Melee Attacks . | . . . Impact . | . . . Slashing . | . . . Piercing . | . . . Sneak Attacks . | . . . Combat Hostiles . | . . . Follow-up Attacks . | . . . Damage Inflicted 2241 | 130 728 1383 Guns 932 | 130 728 74 Cannons 107 | . . 107 Explosions 1202 | . . 1202 Melee . | . . . Ramming . | . . . Kinetic 1039 | 130 728 181 Thermal . | . . . Explosive 1202 | . . 1202 Electromagnetic . | . . . Impact . | . . . Slashing . | . . . Piercing . | . . . Highest Corruption . | . . . Average Corruption . | . . . Corruption Purged . | . . . Corruption Blocked . | . . . Overload Shots . | . . . Overflow Damage 27 | . . 27 Projectiles . | . . . Explosions 27 | . . 27 Melee . | . . . Knockbacks 1 | . . 1 Impact . | . . . Kinetic 1 | . . 1 Secondary . | . . . Self-Inflicted Damage . | . . . Shots . | . . . Rammed . | . . . Targets Rammed . | . . . Kicked . | . . . Crushed . | . . . Highest Temperature 45 | . 12 45 Average Temperature 18 | . 6 21 Received Heat Transfer 267 | . 186 81 Siege Activations . | . . . Robots Corrupted . | . . . Combat Hostiles . | . . . Parts Fried . | . . . Impact Corruptions . | . . . Robots Melted . | . . . Combat Hostiles . | . . . Parts Melted . | . . . Heat Transferred . | . . . Parts Sabotaged . | . . . Parts Stolen . | . . . Parts Stripped . | . . . Power Chain Reactions . | . . . Alert | -11 -10 -10 ------- Run | Yrd Mat Min Peak Influence 254 | 5 254 227 Initial 21 | . 3 21 Average 94 | . 124 74 Maximum Alert Level 1 | . 1 1 Low Security (%) 84 | 100 74 92 Level 1 15 | . 25 7 Level 2 . | . . . Level 3 . | . . . Level 4 . | . . . Level 5 . | . . . High Security . | . . . Max Security . | . . . Squads Dispatched 4 | . 3 1 Investigation 2 | . 1 1 Extermination . | . . . Reinforcement 2 | . 2 . Assault . | . . . Garrison . | . . . Intercept . | . . . Searches Triggered . | . . . Construction Impeded . | . . . Haulers Reinforced . | . . . Active Scanning Responses . | . . . Cargo Convoy Interrupts . | . . . Stealth | -11 -10 -10 --------- Run | Yrd Mat Min Distress Signals 2 | . 2 . Communications Jammed . | . . . Distress Signals . | . . . Times Spotted 44 | . 18 26 Peak Tracking Total 19 | . 3 19 Tactical Retreats 1 | . 1 . Traps | -11 -10 -10 ------- Run | Yrd Mat Min Traps Triggered 1 | . 1 . Indirectly . | . . . Trap Hack Attempts . | . . . Triggered . | . . . Disarmed . | . . . Reprogrammed 4 | . 4 . Reused 2 | . 2 . Traps Extracted . | . . . Installed . | . . . Triggered 2 | . 2 . Machines | -11 -10 -10 ---------- Run | Yrd Mat Min Machines Disabled 2 | . . 2 Max in Single Turn 2 | . . 2 Machines Repaired . | . . . Machines Dismantled . | . . . Machines Sabotaged . | . . . Overloaded Fab Kills . | . . . Hacking | -11 -10 -10 --------- Run | Yrd Mat Min Machines Accessed 6 | . 5 1 Terminals 5 | . 5 . Fabricators . | . . . Repair Stations . | . . . Recycling Units . | . . . Scanalyzers . | . . . Garrison Access . | . . . Total Hacks 7 | . 6 1 Successful 6 | . 5 1 Failed 1 | . 1 . Catastrophic . | . . . Database Lockouts . | . . . Manual 3 | . 3 . Terminals 6 | . 6 . Fabricators . | . . . Repair Stations . | . . . Recycling Units . | . . . Scanalyzers . | . . . Garrison Access . | . . . Terminal Hacks 6 | . 5 1 Prototype ID Bank 1 | . 1 . Open Door 1 | . . 1 Locate Traps 1 | . 1 . Reprogram Traps 1 | . 1 . Transport Status 1 | . 1 . Hauler Manifests 1 | . 1 . Fabricator Hacks . | . . . Repair Station Hacks . | . . . Recycling Unit Hacks . | . . . Scanalyzer . | . . . Garrison Access Hacks . | . . . Unauthorized Hacks . | . . . Terminals . | . . . Fabricators . | . . . Repair Stations . | . . . Recycling Units . | . . . Scanalyzers . | . . . Garrison Access . | . . . Data Cores Recovered . | . . . Used . | . . . Hacking Detections 2 | . 2 . Full Trace Events . | . . . Feedback Events . | . . . Feedback Blocked . | . . . Robot Schematics Acquired . | . . . Robots Built . | . . . Authchips . | . . . Time . | . . . Total Robot Build Rating . | . . . Part Schematics Acquired . | . . . Parts Built . | . . . Authchips . | . . . Time . | . . . Total Part Build Rating . | . . . Parts Repaired . | . . . Time . | . . . Parts Recycled . | . . . Recycled Matter . | . . . Retrieved Matter . | . . . Retrieved Components . | . . . Parts Scanalyzed . | . . . Part Schematics Acquired . | . . . Parts Damaged . | . . . Bothacking | -11 -10 -10 ------------ Run | Yrd Mat Min Used RIF Installer . | . . . Robots Hacked . | . . . Non-combat . | . . . Combat . | . . . Robot Hacks Applied . | . . . Relay Couplers Released . | . . . Fabnet Peak Effective % . | . . . Robots Rewired . | . . . Allies Hacked . | . . . Hacks Repelled . | . . . Allies | -11 -10 -10 -------- Run | Yrd Mat Min Total Allies . | . . . Largest Group . | . . . Highest-Rated Group . | . . . Highest-Rated Ally . | . . . Total Orders . | . . . Ally Attacks . | . . . Total Damage . | . . . Kills . | . . . Allies Corrupted . | . . . Allies Melted . | . . . Intel | -11 -10 -10 ------- Run | Yrd Mat Min Robot Analysis Total . | . . . Derelict Logs Recovered 2 | . . 2 Drone Launches . | . . . Drone Recoveries . | . . . Exploration | -11 -10 -10 ------------- Run | Yrd Mat Min Turns Passed 1847 | 142 923 782 Spaces Moved 959 | 71 457 431 Core 6 | 4 . 2 Treads 953 | 67 457 429 Legs . | . . . Wheels . | . . . Hover . | . . . Flight . | . . . Fastest Speed 50 | 50 160 160 Average Speed 160 | 155 160 160 Slowest Speed 350 | 160 160 350 Overloaded Moves . | . . . Propulsion Burnouts . | . . . Robots Hopped . | . . . Cave-ins Triggered . | . . . Exploration Rate (%) 49 | 5 63 81 Regions Visited 2 Branch Regions 1 Pre-discovered Areas 2 | . . 2 Known Exits Taken . | . . . Unknown Exits Taken 2 | 1 1 . Scrap Searched . | . . . Spaces Dug . | . . . Terrain Destroyed 103 | . . 103 Melee . | . . . Projectile . | . . . AOE 103 | . . 103 Terrain Rammed . | . . . Walls Destroyed . | . . . Machines Disabled . | . . . Actions | -11 -10 -10 --------- Run | Yrd Mat Min Total 1137 | 88 574 475 Wait 58 | 2 51 5 Move 957 | 70 456 431 Hop . | . . . Pick Up 24 | 4 17 3 Fast Attach 8 | 6 2 . Attach 2 | . . 2 Detach . | . . . Swap 12 | . 3 9 Drop 8 | . 5 3 Fire 68 | 6 40 22 Melee . | . . . Ram . | . . . Kick . | . . . Crush . | . . . Escape Stasis . | . . . Rewire . | . . . Trap . | . . . Miscellaneous . | . . . Route ------- -11/Scrapyard -10/Materials (discovered 3 exits: [*Mat] / *Min x2) -10/Mines (discovered 2 exits: [*Mat] / [*Exi]) History --------- Turn | Location | Event 7 | -11/Scrapyard | Discovered new exit (range 15) 143 | -11/Scrapyard | Entered Materials 315 | -10/Materials | Build established: Mutant 341 | -10/Materials | Discovered new exit (range 16) 708 | -10/Materials | Discovered new exit (range 7) 778 | -10/Materials | Discovered new exit (range 11) 1066 | -10/Materials | Entered Mines 1101 | -10/Mines | Met a Derelict bent on vengeance 1115 | -10/Mines | Met a Derelict shopkeep closing up shop 1197 | -10/Mines | Discovered new exit (range 8) 1215 | -10/Mines | Learned location of Storage (-9) 1250 | -10/Mines | Found a damaged Exp. Sensor Array with a note attached 1366 | -10/Mines | Deemed a non-threat by the Exiles lab entrance 1366 | -10/Mines | Discovered new exit (range 5) 1655 | -10/Mines | Received a Rocket Launcher from a helpful Derelict 1804 | -10/Mines | Assembled infested the area 1837 | -10/Mines | Destroyed 13 combat bots 1843 | -10/Mines | Core integrity fell below 50% 1845 | -10/Mines | Core integrity fell below 20% 1848 | -10/Mines | Destroyed by D-53 Grenadier with Mini Grenade Launcher Last Messages --------------- 01813_ as-52719 destroyed. 01814_ D-53 Grenadier unfolds itself. 01815_ The unstable cave ceiling collapses. 01815_ as-65615 destroyed. 01816_ Destroyed Asb. Hover Unit. 01816_ as-43095 destroyed. 01819_ as-00184 destroyed. 01820_ as-65749 destroyed. 01823_ The unstable cave ceiling collapses. 01830_ Lgt. Treads destroyed. 01830_ Grenade Launcher destroyed. 01832_ Lgt. Treads destroyed. 01833_ The unstable cave ceiling collapses. 01834_ Rocket Launcher destroyed. 01837_ The unstable cave ceiling collapses. 01837_ Lgt. Nuclear Core destroyed. 01840_ The unstable cave ceiling collapses. 01840_ Lgt. Treads destroyed. 01842_ The unstable cave ceiling collapses. 01848_ Structural Scanner destroyed. Map ----- +----------------------------------------------------+ | ###"!### ############ """ ###???? | | ?##"/ #X ##??### """ ####??? | | ?##"! ##### ##??#### ### """ ###??? | | ?##" ##### ######### ### ##??? | | ?##"! !# ##?## ######### ## ##??? | | ?##"!### ##?## ## ## ###??? | | ####### ##### ######??? | | ######## ############# ######???? | | ######## ## ##### ??????? | | ######## ####### ##?########## ##### ???????? | | ######## ####### ##????######## ####??????????? | | ##??### ###?## ##?????????#########???????????? | | ##??## ###?## ##??????????#######????????????? | | ##??## ##?## ##?????????????????????????????? | | ##??### ##### ##?????????????????????????????? | | ##??#### ##### ##?????????????????????????????? | | ##???#### #### ##?????????????????????????????? | | ##????### #### ##?????????????????????????????? | | ##???### #### ########???????????????????????? | | ##??### ##### ########???????????????????????? | | ##??## ######## ######????##########??## ? | | ####### ######?######## ####################??## ? | | ##########?############ # ####### # ## % ? | | #################?### # # % ? | | ####?##### ####### # | | ] ###?### ##### @ # | | ##### ##### d | | ##### """ ##### | | # #### """ ###?## % | | ## ### """ ####??## | | ## ##????### | | ### ##????#### ## ## | | ### #### ##?????###### ## ##### ### | | ?######## ###??????################### #### | | ?######### ####?????????#########??###### ###? | | ???????#########????????????????????????????####?? | | ????????#######?????????????????????????????####?? | | ?????????????????????????????????????????????????? | | | | | | | | | | | | | | | | | | | | | | | | | +----------------------------------------------------+ Best States ------------- Heat Dissipation 25 Energy Generation 14 Energy Capacity 250 Matter Stores 300 Matter Capacity 300 Sight Range 16 Terrain Scan Density 10 Evasion (%) 40 Recoil Reduction 2 Item Schematics ----------------- None Robot Schematics ------------------ None Fabricated ------------ Nothing Alien Tech Used ----------------- None Achievements -------------- Quick And Dirty Challenges ------------ None Game ------ Seed TerrabombCombatGun Manual? 0 Play Time 00:20:52 Cumulative 34.7 hours Start 2024.04.05 @ 20:00:17 End 2024.04.05 @ 20:23:51 Sessions 1 Manual Loads 0 Difficulty Rogue Special Mode None Game No. 67 Rogue 67 Adventurer 0 Explorer 0 Win Type - Total 0 Types 0/0/0/0/0/0/0/0/0 Lore% 22 Gallery% 22 Achievement% 23 Wizard Run 0 Options --------- Layout 1 ASCII 0 Keyboard 0 Movement Mouse Keybinds 0 Fullscreen 2 Font 24/Smallcaps Map View 50x35 Zoom Use 0% Tactical HUD 1 Map Filters NONE Filters NONE Steam 1 RUN: 185e40bd-575d-415c-8a1c-db6cd96a00d0